Cogmind - Beta 13 @@@ ROGUE MODE // 2024.04.02 @ 04:13:58 Player: Iris Result: Destroyed by G-34 Mercenary with Small Laser Performance ------------- Evolutions (0) 0 Regions Visited (1) 200 Robots Destroyed (11) 55 Value Destroyed (154) 154 Prototype IDs (2) 40 Alien Tech Used (0) 0 Bonus (0) 0 TOTAL SCORE: 449 Bonus ------- None Cogmind --------- Core Integrity 0/250 Matter 295/300 Energy 64/100 System Corruption 0% Temperature Cool (7) Movement Core (50) Location -10/Materials Parts ------- > --- POWER (1) -------- (None) > --- PROPULSION (2) --- (None) > --- UTILITY (2) ------ ECM Suite > --- WEAPON (2) ------- Light Assault Rifle > --- INVENTORY (5) ---- Heat Sink Peak State ------------ > --- POWER ------------ Light Ion Engine > --- PROPULSION ------- Light Treads Light Treads > --- UTILITY ---------- Heat Sink Small Storage Unit > --- WEAPON ----------- Light Assault Rifle Light Assault Rifle > --- INVENTORY -------- (None) [Rating: 7] Favorites ----------- Power Light Ion Engine Engine Light Ion Engine Propulsion Light Treads Treads Light Treads Utility ECM Suite Device ECM Suite Storage Small Storage Unit Weapon Light Assault Rifle Ballistic Gun Light Assault Rifle Build | -11 -10 ------- Run | Yrd Mat Slots Evolved . | . . Power . | . . Propulsion . | . . Utility . | . . Weapon . | . . Parts Attached 11 | 6 5 Power 2 | 1 1 Engine 2 | 1 1 Core . | . . Reactor . | . . Propulsion 2 | 2 . Treads 2 | 2 . Leg . | . . Wheel . | . . Hover . | . . Flight . | . . Utility 5 | 1 4 Device 4 | . 4 Storage 1 | 1 . Processor . | . . Hackware . | . . Protection . | . . Artifact . | . . Weapon 2 | 2 . Energy Gun . | . . Energy Cannon . | . . Ballistic Gun 2 | 2 . Ballistic Cannon . | . . Launcher . | . . Special Weapon . | . . Impact Weapon . | . . Slashing Weapon . | . . Piercing Weapon . | . . Special Melee Weapon . | . . Unidentified Prototypes . | . . Parts Lost 6 | . 6 Power 1 | . 1 Propulsion 2 | . 2 Utility 2 | . 2 Weapon 1 | . 1 Highest Loss Streak 3 | . 3 To Critical Strikes . | . . Average Slot Usage (%) 87 | . 87 Engine 13 | . 13 Treads 21 | . 21 Device 18 | . 18 Storage 4 | . 4 Ballistic Gun 27 | . 27 Naked Turns . | . . Heaviest Build 11 | 10 11 Greatest Support 40 | 40 40 Greatest Overweight (x) 2 | . 2 Average Overweight (x) . | . . Largest Inventory Capacity 8 | 8 8 Average Capacity 5 | 6 5 Most Carried 3 | 2 3 Average Carried 1 | . 1 Final Capacity 8 | 8 5 Final Carried 1 | . 1 Class Distribution -------------------- 100% | Mutant Dominant Class ---------------- Mutant | -10/Materials Resources | -11 -10 ----------- Run | Yrd Mat Matter Collected 346 | 230 116 Remotely . | . . Salvage Created 254 | . 254 Parts 23 | . 23 Haulers Intercepted . | . . Recyclers Shooed 1 | . 1 Parts Field Recycled . | . . Retrieved Matter . | . . Parts Self-Destructed . | . . Prevented . | . . Kills | -11 -10 ------- Run | Yrd Mat Combat Hostiles Destroyed 10 | . 10 Guns 10 | . 10 Classes Destroyed 3 | . 3 Recycler 1 | . 1 Swarmer 8 | . 8 Grunt 2 | . 2 Best Kill Streak 6 | . 6 Combat Bots Only 5 | . 5 Max Kills in Single Turn 2 | . 2 Gunslinging 1 | . 1 Exploded . | . . Melee . | . . Uniques/NPCs Destroyed . | . . Combat | -11 -10 -------- Run | Yrd Mat Hostile Shots Fired 121 | . 121 Missed 27 | . 27 Damage Taken 841 | . 841 Core 253 | . 253 Absorbed by Shields . | . . Core Remaining (%) 100 | 100 . Volleys Fired 43 | . 43 Largest 2 | . 2 Hottest 40 | . 40 Shots Fired 81 | . 81 Gun 81 | . 81 Cannon . | . . Launcher . | . . Special . | . . Kinetic 81 | . 81 Thermal . | . . Explosive . | . . Electromagnetic . | . . Robot Hit Streak 7 | . 7 Robot Miss Streak 4 | . 4 Penetration Max . | . . Secondary Targets 4 | . 4 Max Gunslinging Chain 1 | . 1 Shots Hit Robots 44 | . 44 Core Hits 19 | . 19 Critical Kills . | . . Critical Parts Destroyed . | . . Critical Strikes . | . . Melee Attacks . | . . Impact . | . . Slashing . | . . Piercing . | . . Sneak Attacks . | . . Combat Hostiles . | . . Follow-up Attacks . | . . Damage Inflicted 382 | . 382 Guns 371 | . 371 Cannons . | . . Explosions . | . . Melee . | . . Ramming 11 | . 11 Kinetic 371 | . 371 Thermal . | . . Explosive . | . . Electromagnetic . | . . Impact . | . . Slashing . | . . Piercing . | . . Highest Corruption . | . . Average Corruption . | . . Corruption Purged . | . . Corruption Blocked . | . . Overload Shots . | . . Overflow Damage . | . . Projectiles . | . . Explosions . | . . Melee . | . . Knockbacks . | . . Impact . | . . Kinetic . | . . Secondary . | . . Self-Inflicted Damage 1 | . 1 Shots . | . . Rammed 6 | . 6 Targets Rammed 7 | . 7 Kicked . | . . Crushed 1 | . 1 Highest Temperature 12 | . 12 Average Temperature 5 | . 5 Received Heat Transfer 204 | . 204 Siege Activations . | . . Robots Corrupted . | . . Combat Hostiles . | . . Parts Fried . | . . Impact Corruptions . | . . Robots Melted . | . . Combat Hostiles . | . . Parts Melted . | . . Heat Transferred . | . . Parts Sabotaged . | . . Parts Stolen . | . . Parts Stripped . | . . Power Chain Reactions . | . . Alert | -11 -10 ------- Run | Yrd Mat Peak Influence 171 | . 171 Initial . | . . Average 83 | . 99 Maximum Alert Level . | . . Low Security (%) 100 | 100 100 Level 1 . | . . Level 2 . | . . Level 3 . | . . Level 4 . | . . Level 5 . | . . High Security . | . . Max Security . | . . Squads Dispatched 1 | . 1 Investigation . | . . Extermination . | . . Reinforcement 1 | . 1 Assault . | . . Garrison . | . . Intercept . | . . Searches Triggered . | . . Construction Impeded . | . . Haulers Reinforced . | . . Active Scanning Responses . | . . Cargo Convoy Interrupts . | . . Stealth | -11 -10 --------- Run | Yrd Mat Distress Signals 1 | . 1 Communications Jammed . | . . Distress Signals . | . . Times Spotted 28 | . 28 Peak Tracking Total 7 | . 7 Tactical Retreats 5 | . 5 Traps | -11 -10 ------- Run | Yrd Mat Traps Triggered . | . . Indirectly . | . . Trap Hack Attempts . | . . Triggered . | . . Disarmed 4 | . 4 Reprogrammed . | . . Reused . | . . Traps Extracted . | . . Installed . | . . Triggered . | . . Machines | -11 -10 ---------- Run | Yrd Mat Machines Disabled . | . . Max in Single Turn . | . . Machines Repaired . | . . Machines Dismantled . | . . Machines Sabotaged . | . . Overloaded Fab Kills . | . . Hacking | -11 -10 --------- Run | Yrd Mat Machines Accessed 4 | . 4 Terminals 3 | . 3 Fabricators . | . . Repair Stations . | . . Recycling Units 1 | . 1 Scanalyzers . | . . Garrison Access . | . . Total Hacks 13 | . 13 Successful 8 | . 8 Failed 5 | . 5 Catastrophic 2 | . 2 Database Lockouts . | . . Manual 2 | . 2 Terminals 7 | . 7 Fabricators . | . . Repair Stations . | . . Recycling Units 6 | . 6 Scanalyzers . | . . Garrison Access . | . . Terminal Hacks 3 | . 3 Prototype ID Bank 1 | . 1 Disarm Traps 1 | . 1 Hauler Manifests 1 | . 1 Fabricator Hacks . | . . Repair Station Hacks . | . . Recycling Unit Hacks 5 | . 5 Recycle Component 2 | . 2 Process 1 | . 1 Report Inventory 1 | . 1 Retrieve Components 1 | . 1 Scanalyzer . | . . Garrison Access Hacks . | . . Unauthorized Hacks . | . . Terminals . | . . Fabricators . | . . Repair Stations . | . . Recycling Units . | . . Scanalyzers . | . . Garrison Access . | . . Data Cores Recovered . | . . Used . | . . Hacking Detections 2 | . 2 Full Trace Events . | . . Feedback Events . | . . Feedback Blocked . | . . Robot Schematics Acquired . | . . Robots Built . | . . Authchips . | . . Time . | . . Total Robot Build Rating . | . . Part Schematics Acquired . | . . Parts Built . | . . Authchips . | . . Time . | . . Total Part Build Rating . | . . Parts Repaired . | . . Time . | . . Parts Recycled 2 | . 2 Recycled Matter 347 | . 347 Retrieved Matter . | . . Retrieved Components . | . . Parts Scanalyzed . | . . Part Schematics Acquired . | . . Parts Damaged . | . . Bothacking | -11 -10 ------------ Run | Yrd Mat Used RIF Installer . | . . Robots Hacked . | . . Non-combat . | . . Combat . | . . Robot Hacks Applied . | . . Relay Couplers Released . | . . Fabnet Peak Effective % . | . . Robots Rewired . | . . Allies Hacked . | . . Hacks Repelled . | . . Allies | -11 -10 -------- Run | Yrd Mat Total Allies . | . . Largest Group . | . . Highest-Rated Group . | . . Highest-Rated Ally . | . . Total Orders . | . . Ally Attacks . | . . Total Damage . | . . Kills . | . . Allies Corrupted . | . . Allies Melted . | . . Intel | -11 -10 ------- Run | Yrd Mat Robot Analysis Total . | . . Derelict Logs Recovered . | . . Drone Launches . | . . Drone Recoveries . | . . Exploration | -11 -10 ------------- Run | Yrd Mat Turns Passed 976 | 150 826 Spaces Moved 520 | 96 424 Core 114 | 11 103 Treads 406 | 85 321 Legs . | . . Wheels . | . . Hover . | . . Flight . | . . Fastest Speed 50 | 50 150 Average Speed 155 | 147 157 Slowest Speed 160 | 160 160 Overloaded Moves . | . . Propulsion Burnouts . | . . Robots Hopped . | . . Cave-ins Triggered . | . . Exploration Rate (%) 24 | 6 42 Regions Visited 1 Branch Regions . Pre-discovered Areas . | . . Known Exits Taken . | . . Unknown Exits Taken 1 | 1 . Scrap Searched . | . . Spaces Dug . | . . Terrain Destroyed . | . . Melee . | . . Projectile . | . . AOE . | . . Terrain Rammed . | . . Walls Destroyed . | . . Machines Disabled . | . . Actions | -11 -10 --------- Run | Yrd Mat Total 615 | 103 512 Wait 30 | . 30 Move 519 | 95 424 Hop . | . . Pick Up 2 | 2 . Fast Attach 9 | 4 5 Attach 2 | 2 . Detach 3 | . 3 Swap . | . . Drop . | . . Fire 43 | . 43 Melee . | . . Ram 1 | . 1 Kick . | . . Crush 6 | . 6 Escape Stasis . | . . Rewire . | . . Trap . | . . Miscellaneous . | . . Route ------- -11/Scrapyard -10/Materials (discovered 1 exit: [*Mat]) History --------- Turn | Location | Event 5 | -11/Scrapyard | Discovered new exit (range 15) 151 | -11/Scrapyard | Entered Materials 314 | -10/Materials | Build established: Mutant 680 | -10/Materials | Discovered new exit (range 9) 785 | -10/Materials | Core integrity fell below 50% 962 | -10/Materials | Core integrity fell below 20% 977 | -10/Materials | Destroyed by G-34 Mercenary with Small Laser Last Messages --------------- Lgt. Assault Rifle (40) Lgt. Assault Rifle (20) Com. Wheel (11) Sml. Storage Unit (68) Lgt. Assault Rifle (37) Flight Unit (9) Flight Unit (10) Lgt. Assault Rifle (39) Lgt. Assault Rifle (30) Lgt. Ion Engine (19) Lgt. Ion Engine (0) Sml. Storage Unit (64) >>Recycling(Report) Matter reserves: 578 Inventory: Empty 00877_ Recycling unit begins matter transfer process. 00955_ Lgt. Ion Engine destroyed. 00967_ Lgt. Assault Rifle destroyed. 00976_ Seismic Detector destroyed. Map ----- +----------------------------------------------------+ | ?????#??#??# #?????# #???????? | | ??????????## ##????# #???????? | | ??????#???# #???## #???????? | | ??????????# ###### #???????? | | ????#?????# #???#???? | | ??????????# ###### #???#???? | | ???????############## #???????? | | ???????# %# #???????? | | ???????# """ """ %%+% #???????? | | ??????## """""""""= # #???????? | | ??#????# """"" "!% #= #????#??? | | ????#??# [ # #???????? | | ??????##########+#### #???????? | | ??????# ## #??#????? | | ??????# ^## #???????? | | ??????# < ## #???????? | | ??#???# ## #???????? | | ?##!??### ^## #???????? | | ?#! ????# ^## #???????? | | ?#! ???# ^## #???????? | | ?#! #### ^ #???????? | | ?#! ????? | | ??#! ????? | | ??#### "T" """ ???? | | ?????# """ !! ?? | | ?????# @ """ != ??? | | ?????# a[| ??? | | ?????# g ??? | | ?????####g#### ??? | | ??????# # #??? | | ??????# # #??? | | ??????# """ # #??? | | ??????# """ # """ #??? | | ??????# """ + ### """ ???? | | ??????# # #?# """ #???? | | ??????#+###### #?# #???? | | ??????# #?# #?# ##### | | ??????# #?# #?# | | ??????# #?###/##### | | ??????# #?# ## #####+###### | | ??????# ### """ ## #% #? | | ??????# + "Y" ## / % T #? | | ??????##### / ## % #? | | ??????????# ###### ! #? | | ??????????# !#????# #? | | ??????????########????# """ #? | | ??????????????????????# """ /#? | | ??????????????????????# """ ! #? | | ??????????????????????###########? | | | +----------------------------------------------------+ Best States ------------- Heat Dissipation 35 Energy Generation 10 Energy Capacity 125 Matter Stores 300 Matter Capacity 300 Sight Range 16 Terrain Scan Range 14 Terrain Scan Density 10 ECM Strength 1 Evasion (%) 50 Recoil Reduction 2 Item Schematics ----------------- None Robot Schematics ------------------ None Fabricated ------------ Nothing Alien Tech Used ----------------- None Achievements -------------- None Challenges ------------ None Game ------ Seed PointHugeScrap Manual? 0 Play Time 00:12:18 Cumulative 4.6 hours Start 2024.04.02 @ 04:02:13 End 2024.04.02 @ 04:13:58 Sessions 1 Manual Loads 0 Difficulty Rogue Special Mode None Game No. 13 Rogue 13 Adventurer 0 Explorer 0 Win Type - Total 0 Types 0/0/0/0/0/0/0/0/0 Lore% 4 Gallery% 11 Achievement% 13 Wizard Run 0 Options --------- Layout 2 ASCII 0 Keyboard 1 Movement Arrows Keybinds 0 Fullscreen 2 Font 32/SmallcapsGlow Map View 50x44 Zoom Use 0% Tactical HUD 1 Map Filters NONE Filters NONE Steam 1 RUN: 4a4f6631-87d4-4d66-a186-917b327fca37